bitfinex-derivatives/quotes_ETHF0:USTF0_20250212
["timestamp","ask_amount","ask_price","bid_price","bid_amount"]
[1739368861491,6.0,2588.3,2586.9,3.295]
[1739368861692,3.2078,2587.7,2586.7,3.2078]
[1739368861892,0.77305,2587.3,2586.7,3.2078]
[1739368862193,3.98085,2587.3,2586.7,3.2078]
[1739368862494,0.77307,2587.2,2586.7,3.21360237]
[1739368862693,0.00580237,2587.3,2586.7,3.21360237]
[1739368862884,0.00580237,2587.3,2587.0,3.2078]
[1739368863287,0.00580237,2587.3,2587.1,4.99001141]
[1739368863696,0.00580237,2587.3,2587.1,10.99001141]
[1739368863892,0.77282,2588.1,2587.2,4.54597858]
[1739368864100,3.2078,2587.6,2587.0,3.2078]
[1739368864300,0.77304,2587.3,2586.7,0.00580237]
[1739368864493,0.77304,2587.3,2587.0,3.2078]
[1739368864697,3.2078,2588.2,2587.0,3.2078]
[1739368864890,3.2078,2587.9,2587.0,3.2078]
[1739368865092,3.21360237,2587.9,2586.7,0.00580237]
[1739368865294,0.77303,2587.4,2587.0,3.2078]
[1739368865496,3.2078,2587.6,2586.7,0.00580237]
[1739368865801,0.77316,2586.9,2586.7,0.00580237]
[1739368865991,0.77319,2586.8,2586.7,0.00580237]
[1739368866403,0.77348,2585.9,2585.2,3.2078]
[1739368866588,3.2078,2586.4,2585.2,3.2078]
[1739368866794,4.54597858,2586.8,2585.3,5.01613594]
[1739368866795,3.2078,2586.1,2585.3,5.01613594]
[1739368866995,0.77352,2585.8,2585.2,3.2078]
[1739368867298,3.2078,2586.2,2585.2,3.2078]
[1739368867504,3.2078,2586.2,2585.6,3.2078]
[1739368867797,0.00580237,2585.8,2585.6,3.2078]
[1739368867989,0.77352,2585.7,2585.6,3.2078]
[1739368869497,0.00580237,2585.8,2585.2,0.00580237]
[1739368870006,0.00580237,2585.8,2585.7,3.2078]
[1739368870302,11.2653,2586.7,2585.7,3.2078]
[1739368870303,0.77324,2586.7,2585.7,3.2078]
[1739368870606,0.77327,2586.6,2586.1,3.2078]
[1739368870798,0.77344,2586.0,2585.7,5.07028618]
[1739368871109,0.77349,2585.8,2585.3,3.2078]
[1739368871401,0.00580237,2585.8,2585.3,3.2078]
[1739368871596,0.77361,2585.4,2585.3,3.2078]
[1739368871791,0.77364,2585.3,2585.2,0.00580237]
[1739368872002,0.77363,2585.4,2585.2,0.00580237]
[1739368872207,0.77362,2585.4,2585.2,0.00580237]
[1739368872406,0.77364,2585.3,2585.2,0.00580237]
[1739368873102,0.77381,2584.8,2584.6,3.2078]
[1739368873310,3.2078,2584.9,2584.0,3.2078]
[1739368873507,3.2078,2584.6,2584.0,3.2078]
[1739368873802,0.774,2584.1,2584.0,3.2078]
[1739368874197,3.2078,2584.6,2584.0,3.2078]
[1739368874398,0.00580237,2584.3,2584.0,3.2078]
[1739368875304,0.00580237,2584.3,2583.8,3.29580237]
[1739368875502,0.77404,2584.0,2583.8,0.00580237]
[1739368875697,3.2078,2584.5,2583.8,0.00580237]
[1739368875998,3.2078,2585.8,2584.4,7.75377858]
[1739368876202,3.2078,2585.8,2584.6,3.2078]
[1739368876402,3.2078,2585.5,2584.6,3.2078]
[1739368876607,0.77384,2584.7,2584.1,3.29]
[1739368876812,0.77393,2584.4,2584.2,3.2078]
[1739368877001,0.77393,2584.4,2583.5,0.35494112]
[1739368877002,0.77397,2584.2,2584.1,0.00580237]
[1739368877202,0.77405,2584.0,2583.5,3.2078]
[1739368878002,3.2078,2584.1,2583.5,3.2078]
[1739368878307,3.29480237,2584.7,2583.5,3.2078]
[1739368878308,3.2078,2584.3,2583.5,3.21360237]
[1739368878607,3.2078,2584.0,2583.5,0.00580237]
[1739368878806,0.77408,2583.9,2583.5,0.00580237]
[1739368878999,0.77393,2584.4,2583.8,3.2078]
[1739368879201,3.2078,2584.6,2583.8,3.2078]
[1739368879503,3.2078,2584.2,2583.5,3.21360237]
[1739368879708,0.77402,2584.1,2583.5,3.21360237]
[1739368880009,3.2078,2584.2,2583.5,3.21360237]
[1739368880306,0.77409,2583.8,2583.5,0.00580237]
[1739368880506,0.77409,2583.8,2583.5,3.21360237]
[1739368880710,0.77415,2583.6,2583.5,3.21360237]
[1739368880909,3.98187,2583.9,2583.5,3.21360237]
[1739368881109,3.2078,2583.9,2583.5,3.21360237]
[1739368881308,3.2078,2583.9,2583.5,0.00580237]
[1739368881505,0.77409,2583.8,2583.5,0.00580237]
[1739368881813,3.2078,2583.6,2582.5,3.2078]
[1739368882013,0.77438,2582.9,2582.5,3.2078]
[1739368882213,0.7744,2582.8,2582.5,3.2078]
[1739368882409,0.77445,2582.6,2582.5,3.2078]
[1739368882608,3.98213,2583.0,2582.5,3.2078]
[1739368883111,0.00580237,2583.0,2582.6,5.06983358]
[1739368883314,0.00580237,2583.0,2582.5,6.50060237]
[1739368883605,0.00580237,2583.0,2582.8,4.54597858]
[1739368884002,0.00580237,2583.0,2582.5,3.21360237]
[1739368884198,3.98225,2582.6,2582.5,0.00580237]
[1739368884409,0.77445,2582.6,2582.5,0.00580237]
[1739368884806,3.98225,2582.6,2582.5,0.00580237]
[1739368885517,3.2078,2582.6,2581.6,4.54597858]
[1739368885708,3.2078,2582.6,2581.8,3.2078]
[1739368886015,0.77442,2582.7,2582.1,3.2078]
[1739368886211,3.2078,2582.9,2582.1,3.2078]
[1739368886406,0.7745,2582.5,2582.1,3.2078]
[1739368886609,3.2078,2582.9,2582.2,0.00580237]
[1739368886807,0.77452,2582.4,2582.2,0.00580237]
[1739368887010,0.7745,2582.5,2582.2,0.00580237]
[1739368887207,0.77453,2582.4,2582.2,0.00580237]
[1739368887407,0.77454,2582.3,2582.2,0.00580237]
[1739368888710,3.98234,2582.3,2582.2,0.00580237]
[1739368888906,3.2078,2582.6,2582.2,0.00580237]
[1739368889107,1.94168237,2583.0,2582.4,4.54597858]
[1739368889108,0.00580237,2583.0,2582.4,4.54597858]
[1739368889312,0.00580237,2583.0,2582.9,3.2078]
[1739368889512,0.7742,2583.5,2582.9,3.2078]
[1739368889710,3.2078,2583.6,2582.9,3.2078]
[1739368890019,3.98198,2583.6,2583.2,3.2078]
[1739368890310,1.93501,2584.1,2583.5,3.2078]
[1739368890311,3.2078,2584.1,2583.5,3.2078]
[1739368890614,0.77379,2584.8,2584.0,3.98181]
[1739368890814,0.77373,2585.0,2584.6,3.2078]
[1739368891005,3.2078,2585.5,2584.3,3.2078]
[1739368891206,3.2078,2585.9,2584.9,3.2078]
[1739368891417,0.77357,2585.6,2585.3,3.2078]
[1739368891612,3.98126,2585.9,2585.3,3.2078]
[1739368891817,0.00580237,2585.7,2585.3,3.2078]
[1739368892213,0.00580237,2585.7,2585.4,4.54597858]
[1739368892518,3.2078,2586.7,2585.6,3.2078]
[1739368892722,0.77326,2586.6,2586.3,3.2078]
[1739368893016,0.77326,2586.6,2585.3,0.35639541]
[1739368893017,3.2078,2586.7,2585.8,6.4908]
[1739368893216,0.7733,2586.5,2585.8,6.4908]
[1739368893412,3.98104,2586.7,2585.8,6.4908]
[1739368893622,3.2078,2586.7,2586.1,3.2078]
[1739368893815,0.00580237,2586.4,2586.1,7.75377858]
[1739368894014,3.2078,2587.3,2586.1,7.75377858]
[1739368894213,0.77343,2586.0,2585.9,0.00580237]
[1739368894414,3.2078,2586.3,2585.9,0.00580237]
[1739368894612,0.77336,2586.3,2586.0,3.2078]
[1739368894816,3.98107,2586.6,2586.0,3.2078]
[1739368895011,3.2078,2586.6,2586.0,3.2078]
[1739368895207,3.2078,2586.2,2585.9,0.00580237]
[1739368895613,3.2078,2586.2,2585.0,3.2078]
[1739368895910,0.77349,2585.8,2585.0,3.2078]
[1739368896120,0.77349,2585.8,2585.5,3.2078]
[1739368896316,3.2078,2586.4,2585.5,3.2078]
[1739368896511,3.2078,2586.1,2585.1,3.2078]
[1739368896711,3.2078,2585.6,2585.0,3.2078]
[1739368896917,3.2078,2585.6,2584.8,3.2078]
[1739368897107,0.7736,2585.5,2585.0,0.00580237]
[1739368897310,3.2078,2585.9,2585.2,3.2078]
[1739368897712,0.77353,2585.7,2585.4,3.2078]
[1739368897908,3.2078,2585.9,2585.2,3.2078]
[1739368898115,0.77348,2585.9,2585.5,3.2078]
[1739368898317,0.77347,2585.9,2585.5,3.2078]
[1739368898623,0.7735,2585.8,2585.5,3.2078]
[1739368898828,0.77351,2585.8,2585.5,3.2078]
[1739368899118,5.6255,2586.4,2585.5,3.2078]
[1739368899321,0.00580237,2586.6,2586.0,3.2078]
[1739368899518,0.00580237,2586.6,2586.3,4.54597858]
[1739368899819,0.77309,2587.2,2586.4,0.7733]
[1739368900021,3.2078,2587.6,2586.4,3.2078]
[1739368900220,3.2078,2587.6,2586.8,3.2078]
[1739368900722,3.2078,2587.6,2586.9,3.2078]
[1739368901321,0.00580237,2587.5,2587.0,0.00580237]
[1739368901523,0.7731,2587.1,2587.0,0.00580237]
[1739368901711,0.00580237,2587.5,2587.0,0.00580237]
[1739368902218,0.7731,2587.1,2587.0,0.00580237]
[1739368903420,9.2078,2587.1,2585.9,4.54597858]
[1739368903614,0.77336,2586.3,2585.9,4.54597858]
[1739368903815,1.93285,2587.0,2585.9,4.54597858]
[1739368904015,0.77349,2585.9,2585.8,3.2078]
[1739368904422,3.2078,2586.1,2585.2,4.5029]
[1739368904725,0.77354,2585.7,2585.6,3.21360237]
[1739368905116,0.77352,2585.7,2585.6,0.00580237]
[1739368905322,3.98132,2585.7,2585.6,2.37e-06]
[1739368905825,9.98132,2585.7,2585.6,2.37e-06]
[1739368907427,3.98132,2585.7,2585.6,2.37e-06]
[1739368907927,9.98132,2585.7,2585.6,2.37e-06]
[1739368908723,4.54597858,2585.4,2583.5,4.54597858]
[1739368908928,0.77411,2583.8,2583.5,4.54597858]
[1739368909126,3.2078,2584.3,2583.3,3.2078]
[1739368909333,3.2078,2584.0,2583.0,3.273]
[1739368909632,0.77423,2583.4,2583.0,4.04732]
[1739368909823,3.2078,2584.0,2583.0,4.04732]
[1739368909824,0.77419,2583.5,2583.2,0.00580237]
[1739368910328,0.00580237,2583.8,2583.2,0.00580237]
[1739368910629,0.77413,2583.7,2583.4,3.2078]
[1739368911029,0.00580237,2583.8,2583.4,3.2078]
[1739368911326,0.77418,2583.5,2583.4,3.2078]
[1739368911528,0.00580237,2583.8,2583.2,3.27880237]
[1739368911723,0.77423,2583.4,2583.2,3.27880237]
[1739368911933,0.00580237,2583.8,2583.2,3.27880237]
[1739368912232,0.77413,2583.7,2583.4,3.2078]
[1739368912529,0.77990237,2583.8,2583.5,4.54597858]
[1739368912735,0.77990237,2583.8,2583.7,3.2078]
[1739368912931,0.00580237,2583.8,2583.7,3.2078]
[1739368913133,0.77398,2584.2,2583.7,9.2078]
[1739368913430,0.77395,2584.3,2584.0,3.2078]
[1739368914024,3.2078,2584.9,2584.0,3.2078]
[1739368914221,0.77399,2584.2,2583.7,3.2078]
[1739368914431,0.77395,2584.3,2584.0,3.2078]
[1739368914632,3.2078,2584.6,2584.0,3.2078]
[1739368914835,3.2078,2584.3,2583.7,3.2078]
[1739368915029,3.2078,2584.6,2584.0,3.2078]
[1739368915234,3.2078,2584.2,2583.5,4.54597858]
[1739368915531,0.77424,2583.3,2583.2,0.00580237]
[1739368915838,0.77436,2582.9,2582.8,3.2078]
[1739368916429,1.93568,2583.2,2582.6,3.2078]
[1739368916635,0.77445,2582.6,2582.5,3.2078]
[1739368917030,0.77448,2582.5,2582.4,0.00580237]
[1739368917434,1.93629,2582.4,2581.3,3.2078]
[1739368917725,0.77472,2581.7,2581.6,3.2078]
[1739368918031,3.2078,2582.5,2581.6,3.2078]
[1739368918233,0.77462,2582.1,2581.6,3.2078]
[1739368918433,0.77456,2582.3,2581.6,3.2078]
[1739368918632,9.0576,2582.9,2582.0,3.2078]
[1739368918827,0.77451,2582.4,2582.0,3.2078]
[1739368919032,0.77458,2582.2,2581.9,4.54597858]
[1739368919525,0.77462,2582.1,2581.7,3.2078]
[1739368919728,3.2078,2582.5,2581.7,3.2078]
[1739368920127,0.77465,2582.0,2581.7,3.2078]
[1739368920331,3.2078,2582.5,2581.7,3.2078]
[1739368920531,3.2078,2582.5,2581.6,0.00580237]
[1739368920532,3.2078,2582.8,2582.0,3.2078]
[1739368920733,0.00580237,2583.0,2582.0,6.4768]
[1739368920933,0.00580237,2583.0,2582.3,7.75377858]
[1739368921338,0.00580237,2583.0,2582.7,3.2078]
[1739368921540,0.00580237,2583.0,2582.9,3.2078]
[1739368921935,0.78013237,2583.0,2582.9,3.2078]
[1739368922229,0.00580237,2583.0,2582.9,3.2078]
[1739368922930,3.2078,2584.1,2582.9,14.99172516]
[1739368923136,0.77413,2583.7,2583.6,3.2078]
[1739368923339,0.7741,2583.8,2583.6,3.2078]
[1739368923536,0.77403,2584.1,2583.6,3.2078]
[1739368923843,3.2078,2583.7,2583.0,3.2078]
[1739368924041,3.2078,2583.7,2581.9,0.18939891]
[1739368924042,3.2078,2583.4,2582.3,7.75377858]
[1739368924241,0.77438,2582.9,2582.3,7.75377858]
[1739368924439,0.00580237,2584.1,2582.8,3.2078]
[1739368924632,0.00580237,2584.1,2582.0,9.58001573]
[1739368924633,0.00580237,2584.1,2583.1,12.89353826]
[1739368924939,0.77427,2583.2,2583.1,3.2078]
[1739368925236,3.2078,2583.6,2583.1,3.2078]
[1739368925437,0.77439,2582.8,2582.7,4.54597858]
[1739368925737,0.77451,2582.4,2582.3,0.00580237]
[1739368926435,0.77451,2582.4,2582.3,2.37e-06]
[1739368926734,6.77451,2582.4,2582.3,2.37e-06]
[1739368927640,0.77484,2581.3,2581.2,3.2078]
[1739368927942,0.77496,2581.0,2580.8,3.2078]
[1739368928131,0.77496,2580.9,2580.8,3.2078]
[1739368928334,0.7752,2580.1,2580.0,0.25]
[1739368928632,3.2078,2580.9,2580.0,0.25]
[1739368928834,0.00581384,2580.3,2580.1,3.2078]
[1739368929343,0.00581384,2580.3,2580.0,0.25]
[1739368929538,0.00581384,2580.3,2580.1,3.2078]
[1739368930036,0.78097384,2580.3,2580.0,0.25]
[1739368930234,0.00581384,2580.3,2580.0,0.25]
[1739368930443,0.78097384,2580.3,2580.0,0.25]
[1739368930642,0.00581384,2580.3,2580.0,0.25]
[1739368930839,0.00581384,2580.3,2580.1,3.2078]
[1739368931047,3.2078,2581.7,2580.1,8.28291136]
[1739368931347,3.2078,2581.7,2580.7,3.2078]
[1739368931534,3.2078,2582.0,2580.7,3.2078]
[1739368931741,3.2078,2581.7,2580.7,3.2078]
[1739368931942,0.77482,2581.4,2580.8,5.00343763]
[1739368932151,0.77474,2581.7,2581.1,3.2078]
[1739368932339,3.2078,2582.0,2581.3,4.54597858]
[1739368932546,6.30641411,2600.3,2581.1,3.2078]
[1739368932547,0.77446,2582.6,2581.7,8.52849858]
[1739368932739,0.77448,2582.5,2582.4,3.2078]
[1739368932941,0.77446,2582.6,2582.4,3.2078]
[1739368933148,0.00581384,2582.7,2582.5,3.2078]
[1739368933349,0.00581384,2582.7,2582.5,12.82587827]
[1739368933546,0.77417,2583.6,2582.5,18.82587827]
[1739368933748,1.93488,2584.3,2582.5,18.82587827]
[1739368933749,3.2078,2584.3,2583.5,3.2078]
[1739368934050,11.5494,2584.6,2583.8,3.2078]
[1739368934051,3.2078,2584.5,2583.8,3.2078]
[1739368934248,3.2078,2584.5,2583.9,3.2078]
[1739368934649,3.2078,2584.8,2583.9,3.2078]
[1739368934841,0.774,2584.2,2583.9,3.21361384]
[1739368935041,0.00581384,2584.5,2583.9,0.00581384]
[1739368935254,0.77403,2584.0,2583.9,0.00581384]
[1739368935648,6.0,2584.0,2583.3,3.2078]
[1739368935848,0.7743,2583.2,2582.7,3.2078]
[1739368936252,3.2078,2583.6,2582.7,3.2078]
[1739368936550,0.77434,2583.0,2582.7,3.2078]
[1739368936744,3.2078,2583.3,2582.7,3.2078]
[1739368936946,3.2078,2582.8,2581.2,3.2078]
[1739368937142,3.2078,2582.2,2581.6,3.2078]
[1739368937348,3.2078,2583.0,2581.9,3.2078]
[1739368937644,3.2078,2583.3,2582.2,3.2078]
[1739368938042,3.2078,2583.3,2582.3,5.14376305]
[1739368938043,0.78016384,2583.0,2582.3,5.14376305]
[1739368938248,0.00581384,2583.0,2582.5,0.00581384]
[1739368938551,0.00581384,2583.0,2582.7,3.2078]
[1739368938758,0.77408,2583.9,2582.9,5.32033858]
[1739368938957,3.2078,2584.6,2583.4,3.2078]
[1739368939157,0.77388,2584.5,2583.7,7.75377858]
[1739368939551,0.77388,2584.5,2583.8,4.95402844]
[1739368939859,0.77388,2584.6,2584.3,3.2078]
[1739368940054,0.00581384,2584.4,2583.9,3.21361384]
[1739368940361,0.00581384,2584.4,2584.0,5.10232876]
[1739368940848,0.00581384,2584.4,2584.3,3.2078]
[1739368941449,0.00581384,2584.4,2584.2,3.2078]
[1739368941650,0.00581384,2584.4,2584.3,5.07735292]
[1739368941848,0.00581384,2584.4,2584.2,3.2078]
[1739368942054,0.00581384,2584.4,2584.0,5.07735292]
[1739368942251,0.00581384,2584.4,2584.2,3.2078]
[1739368942758,0.77363,2585.4,2584.5,0.77387]
[1739368943053,3.2078,2586.0,2585.0,3.2078]
[1739368943255,0.77348,2585.9,2585.0,3.98153]
[1739368943457,0.77339,2586.2,2585.3,3.98144]
[1739368943655,3.2078,2586.5,2585.3,3.98144]
[1739368943656,3.2078,2586.5,2585.9,3.2078]
[1739368943864,0.00580237,2586.0,2585.9,3.2078]
[1739368944258,3.2078,2587.0,2585.9,9.2078]
[1739368944561,0.77333,2586.4,2585.9,4.92303674]
[1739368944756,3.2078,2587.0,2585.9,8.13083674]
[1739368945056,3.2078,2587.3,2586.7,3.2078]
[1739368945359,0.00580237,2587.3,2587.0,3.2078]
[1739368945666,0.00580237,2587.3,2586.7,3.21360237]
[1739368945965,0.77307,2587.2,2586.7,3.21360237]
[1739368946260,0.00580237,2587.3,2586.7,3.21360237]
[1739368946460,0.00580237,2587.3,2586.8,4.97663469]
[1739368946656,3.2078,2587.1,2586.8,4.97663469]
[1739368946851,0.00580237,2587.3,2586.9,3.2078]
[1739368947059,0.00580237,2587.3,2586.7,0.00580237]
[1739368947554,3.2078,2587.4,2586.9,3.2078]
[1739368947863,3.2078,2588.0,2587.3,3.2078]
[1739368948059,3.2078,2588.0,2587.0,8.18636183]
[1739368948259,3.2078,2587.3,2587.0,4.93136183]
[1739368948459,3.2078,2587.3,2586.7,0.00580237]
[1739368948655,0.00580237,2587.4,2586.7,0.00580237]
[1739368948857,0.00580237,2587.4,2586.8,8.16613047]
[1739368949159,0.00580237,2587.4,2587.2,3.2078]
[1739368949869,0.00580237,2587.4,2587.3,5.0729765]
[1739368950058,3.2078,2588.5,2587.3,5.0729765]
[1739368950257,3.2078,2588.5,2587.8,3.2078]
[1739368950466,3.9805,2588.5,2587.8,3.2078]
[1739368950664,3.9805,2588.5,2587.9,4.91865683]
[1739368950958,3.2078,2588.5,2587.9,4.91865683]
[1739368951166,0.77279,2588.2,2587.2,6.4598]
[1739368951370,0.77279,2588.2,2587.9,0.00580237]
[1739368951558,3.21153152,2588.5,2587.9,0.00580237]
[1739368951866,3.21153152,2588.5,2588.0,4.96754333]
[1739368952064,0.00373152,2588.5,2588.3,3.2078]
[1739368952463,0.00373152,2588.5,2588.0,3.2078]
[1739368952659,0.00373152,2588.5,2587.9,0.00580237]
[1739368953163,0.77277,2588.3,2587.9,0.00580237]
[1739368953366,0.77278,2588.2,2587.9,0.00580237]
[1739368953566,3.2078,2588.3,2587.9,0.00580237]
[1739368953771,0.00373152,2588.5,2587.9,0.00580237]
[1739368953772,3.98063,2588.0,2587.9,0.00580237]
[1739368954461,3.2078,2588.3,2587.9,0.00580237]
[1739368954665,0.77279,2588.2,2587.9,0.00580237]
[1739368954864,3.98056,2588.3,2587.9,0.00580237]
[1739368955060,3.2078,2588.3,2587.9,0.00580237]
[1739368955558,3.98063,2588.0,2587.9,0.00580237]
[1739368955771,3.2078,2588.3,2587.9,0.00580237]
[1739368956461,0.77277,2588.2,2587.9,0.00580237]
[1739368956656,0.77281,2588.1,2587.9,0.00580237]
[1739368956863,0.00373152,2588.5,2587.9,0.00580237]
[1739368957063,0.77643152,2588.5,2588.2,3.2078]
[1739368957269,0.00373152,2588.5,2588.1,0.77278]
[1739368957464,0.00373152,2588.5,2588.2,0.77277]
[1739368957661,0.00373152,2588.5,2588.4,3.2078]
[1739368957865,0.00373152,2588.5,2588.3,3.2078]
[1739368958069,0.00373152,2588.5,2588.3,3.98053]
[1739368958365,0.00373152,2588.5,2588.4,5.70248269]
[1739368958567,3.98035,2589.0,2588.5,0.77268]
[1739368958759,3.2078,2589.6,2588.9,3.2078]
[1739368958964,0.06417158,2589.5,2588.9,3.2078]
[1739368959171,0.77243,2589.4,2588.9,3.2078]
[1739368959372,3.2078,2589.6,2588.9,3.2078]
[1739368959561,0.7725,2589.2,2589.0,3.2078]
[1739368959873,0.77243,2589.4,2589.0,3.2078]
[1739368960067,3.2078,2589.9,2589.0,3.2078]
[1739368960266,0.06413894,2589.8,2589.1,5.03050029]
[1739368960770,0.77247,2589.3,2589.2,0.00580237]
[1739368960971,3.2078,2589.6,2589.2,0.00580237]
[1739368961169,3.2078,2590.3,2589.3,3.2078]
[1739368961368,3.2078,2590.3,2589.6,3.2078]
[1739368961576,0.7723,2589.8,2589.4,4.99438786]
[1739368961766,0.77244,2589.4,2589.2,0.00580237]
[1739368962270,3.2078,2590.3,2589.2,3.98606237]
[1739368962582,0.12828507,2590.2,2589.5,3.2078]
[1739368962770,0.7721,2590.5,2589.9,0.77224]
[1739368962975,0.0641604,2590.4,2589.9,0.77224]
[1739368963164,0.8362804,2590.4,2589.8,8.53682208]
[1739368963367,0.0641604,2590.4,2590.1,3.2078]
[1739368963772,0.0641604,2590.3,2590.1,3.2078]
[1739368963967,0.0641604,2590.3,2590.2,9.48153682]
[1739368964181,0.77197,2590.9,2590.3,0.77213]
[1739368964377,0.83618131,2590.8,2590.2,16.70549682]
[1739368964579,0.06418131,2590.7,2590.2,11.78070208]
[1739368964775,0.772,2590.8,2590.3,5.11460593]
[1739368964972,0.06418131,2590.6,2590.3,5.11460593]
[1739368965173,0.06418131,2590.6,2590.2,11.00854208]
[1739368965375,0.06418131,2591.0,2590.2,11.00854208]
[1739368965568,0.06418688,2590.9,2590.2,7.76454208]
[1739368965773,0.06418688,2590.9,2589.8,4.55674208]
[1739368965774,3.2078,2590.6,2589.8,4.55674208]
[1739368965975,0.77216,2590.3,2589.7,3.98012]
[1739368966273,0.77217,2590.3,2589.9,5.0904182]
[1739368966579,3.2078,2590.6,2589.9,5.0904182]
[1739368966580,3.2078,2590.6,2590.0,3.2078]
[1739368966979,0.77222,2590.1,2589.4,7.76454208]
[1739368967178,0.77222,2590.1,2589.5,0.77237]
[1739368967376,0.77225,2590.0,2589.4,15.98057292]
[1739368967579,0.77225,2590.0,2589.4,11.77893208]
[1739368967774,0.7723,2589.8,2589.4,11.00654208]
[1739368967969,3.2078,2590.9,2589.4,7.76454208]
[1739368968171,3.2078,2590.6,2590.0,7.76454208]
[1739368968376,3.2078,2590.6,2590.0,3.2078]
[1739368968377,0.77215,2590.3,2590.0,3.2078]
[1739368968986,0.77219,2590.2,2590.0,3.2078]
[1739368969179,3.2078,2590.6,2590.0,3.2078]
[1739368969487,0.77202,2590.8,2590.2,0.77216]
[1739368969883,3.2078,2591.1,2590.4,3.2078]
[1739368970586,0.77205,2590.7,2590.4,3.2078]
[1739368970786,3.2078,2590.7,2590.0,3.2078]
[1739368970983,3.2078,2590.7,2590.3,3.2078]
[1739368971181,0.77207,2590.6,2590.4,3.2078]
[1739368971381,0.77204,2590.7,2590.4,3.2078]
[1739368971586,3.2078,2591.1,2590.5,8.14407849]
[1739368971890,3.2078,2591.1,2590.7,3.2078]
[1739368971891,3.97971,2591.1,2590.7,3.2078]
[1739368972276,3.2078,2592.0,2590.8,4.55674208]
[1739368972482,3.97967,2591.3,2590.8,9.6337702]
[1739368972775,0.77189,2591.2,2590.8,9.6337702]
[1739368973186,0.77174,2591.7,2591.1,0.77189]
[1739368973384,3.2078,2591.9,2591.4,3.2078]
[1739368973587,0.77171,2591.8,2591.4,3.2078]
[1739368973783,3.2078,2591.9,2591.4,3.2078]
[1739368973784,0.77173,2591.7,2591.4,3.2078]
[1739368974284,0.77173,2591.8,2591.4,3.2078]
[1739368974487,3.2078,2591.9,2591.0,6.4448]
[1739368974685,3.2078,2591.6,2590.7,3.2078]
[1739368974983,3.2078,2591.7,2590.8,5.06370628]
[1739368975288,3.2078,2591.7,2591.0,3.2078]
[1739368975289,0.77184,2591.4,2591.0,3.2078]
[1739368975488,3.2078,2591.7,2591.0,3.2078]
[1739368975984,3.2078,2591.4,2590.6,8.23981253]
[1739368976293,0.77192,2591.1,2590.6,9.01185253]
[1739368976583,0.77173,2591.7,2591.1,0.77189]
[1739368976780,0.77167,2591.9,2591.4,0.7718]
[1739368976980,3.97933,2592.4,2591.9,0.77166]
[1739368977177,3.2078,2592.4,2591.8,3.2078]
[1739368977384,0.7716,2592.2,2591.7,3.2078]
[1739368977584,3.2078,2592.4,2591.8,0.00579084]
[1739368977788,3.2078,2592.4,2591.8,3.21359084]
[1739368978087,3.2078,2592.4,2591.8,0.00579084]
[1739368978290,0.77167,2591.9,2591.8,0.00579084]
[1739368979288,3.2078,2592.1,2591.8,0.00579084]
[1739368979688,3.2078,2592.4,2591.9,3.234]
[1739368979883,3.97934,2592.4,2591.9,4.00566]
[1739368980192,3.2078,2593.2,2592.0,9.4701771]
[1739368980385,3.2078,2593.2,2592.3,3.2078]
[1739368980581,0.77137,2593.0,2592.4,5.32825208]
[1739368980785,3.2078,2593.5,2592.6,3.2078]
[1739368980982,3.2078,2594.0,2593.2,3.2078]
[1739368981183,3.2078,2594.0,2593.2,7.76454208]
[1739368981184,0.7711,2593.9,2593.2,7.76454208]
[1739368981391,0.7711,2593.9,2593.3,4.91463777]
[1739368981594,3.2078,2594.0,2593.3,6.07447736]
[1739368981795,3.2078,2594.0,2593.4,0.57518305]
[1739368982208,0.77118,2593.6,2593.3,0.59044738]
[1739368982396,3.2078,2594.0,2593.3,0.59044738]
[1739368982597,0.77122,2593.4,2593.3,0.59044738]
[1739368982898,0.77143,2592.7,2592.6,1.15854947]
[1739368983092,3.97916,2593.0,2592.6,1.15854947]
[1739368983298,0.77116,2593.6,2593.0,0.77133]
[1739368983503,3.2078,2593.9,2592.8,7.76454208]
[1739368983698,3.2078,2593.5,2592.6,0.5839408]
[1739368983895,3.2078,2592.9,2592.6,0.5839408]
[1739368984095,0.77143,2592.7,2592.6,0.5839408]
[1739368984704,4.9,2592.7,2591.7,8.39391]
[1739368984895,3.2078,2592.5,2591.4,6.4388]
[1739368985093,3.2078,2591.9,2591.4,6.4388]
[1739368985302,3.2078,2592.4,2591.5,0.5746457]
[1739368985498,0.77176,2591.7,2591.6,0.5746457]
[1739368986004,0.77176,2591.7,2591.4,3.21359084]
[1739368986208,0.00579084,2591.9,2591.4,3.21359084]
[1739368986400,0.77176,2591.6,2591.5,0.57574855]
[1739368987003,0.77176,2591.6,2591.4,0.00579084]
[1739368987209,1.92956,2591.4,2590.4,3.2078]
[1739368987401,3.2078,2591.2,2590.1,3.2078]
[1739368987601,3.2078,2591.2,2590.2,0.57662857]
[1739368987602,3.2078,2590.5,2590.2,0.57662857]
[1739368987800,0.77215,2590.3,2590.2,0.57662857]
[1739368988001,0.77215,2590.3,2590.2,8.57e-06]
[1739368988202,9.229,2590.3,2589.0,3.2078]
[1739368988501,0.77236,2589.6,2589.0,3.2078]
[1739368988895,0.77238,2589.5,2589.4,0.00579084]
[1739368989798,3.2078,2589.7,2588.6,3.229]
[1739368989999,3.2078,2589.3,2588.4,3.2078]
[1739368990401,3.2078,2589.3,2587.7,0.3864]
[1739368990402,0.7727,2588.5,2588.0,3.2078]
[1739368990599,3.2078,2589.0,2588.0,3.2078]
[1739368990801,3.2078,2589.1,2588.1,4.93154154]
[1739368991003,3.2078,2588.7,2587.6,3.54805089]
[1739368991197,0.77273,2588.4,2588.2,0.00579084]
[1739368991798,0.77274,2588.3,2588.2,0.00579084]
[1739368992002,4.9,2588.3,2587.1,3.2078]
[1739368992199,3.2078,2587.8,2586.7,7.798]
[1739368992403,0.77298,2587.6,2587.0,3.2078]
[1739368992598,3.98069,2587.9,2587.3,3.2078]
[1739368992804,0.7729,2587.8,2587.6,0.0604012]
[1739368993005,3.2078,2588.2,2587.6,0.0604012]